fUST/lending_fUST_20250628
["ID","MTS","AMOUNT","RATE_DAILY","PERIOD"]
[368202238,1751058644624,-460.0,0.00019452,2]
[368202240,1751058644634,-460.0,0.00019452,2]
[368202242,1751058644643,-460.0,0.00019452,2]
[368202244,1751058644652,-460.0,0.00019452,2]
[368202246,1751058644661,-460.0,0.00019452,2]
[368202247,1751058644670,-710.88,0.00019452,2]
[368202248,1751058644679,-460.0,0.00019452,2]
[368202249,1751058644689,-757.78,0.00019452,2]
[368202250,1751058644698,-256.53621236,0.00019452,2]
[368202251,1751058644707,-460.0,0.00019452,2]
[368202252,1751058644716,-460.0,0.00019452,2]
[368202253,1751058644725,-1320.85,0.00019452,2]
[368202254,1751058644735,-600.79,0.00019452,2]
[368202255,1751058644744,-460.0,0.00019452,2]
[368202256,1751058644753,-460.0,0.00019452,2]
[368202257,1751058644763,-500.0,0.00019452,2]
[368202258,1751058644774,-4393.54,0.00019452,2]
[368202260,1751058644784,-460.0,0.00019452,2]
[368202261,1751058644795,-460.0,0.00019452,2]
[368202263,1751058644807,-460.0,0.00019452,2]
[368202265,1751058644816,-4177.64,0.00019452,2]
[368202267,1751058644826,-603.45203309,0.00019452,2]
[368202269,1751058644835,-460.0,0.00019452,2]
[368202271,1751058644845,-460.0,0.00019452,2]
[368202273,1751058644854,-696.88,0.00019452,2]
[368202275,1751058644863,-460.0,0.00019452,2]
[368202277,1751058644873,-460.0,0.00019452,2]
[368202279,1751058644882,-460.0,0.00019452,2]
[368202281,1751058644893,-460.0,0.00019452,2]
[368202283,1751058644902,-460.0,0.00019452,2]
[368202285,1751058644912,-351.86264656,0.00019452,2]
[368202287,1751058644921,-1355.6,0.00019452,2]
[368202289,1751058644931,-460.0,0.00019452,2]
[368202291,1751058644940,-721.51,0.00019452,2]
[368202293,1751058644951,-1409.87,0.00019452,2]
[368202295,1751058644960,-460.0,0.00019452,2]
[368202297,1751058644969,-460.0,0.00019452,2]
[368202299,1751058644979,-460.0,0.00019452,2]
[368202301,1751058644989,-619.56,0.00019452,2]
[368202303,1751058644998,-5361.03,0.00019452,2]
[368202305,1751058645007,-460.0,0.00019452,2]
[368202307,1751058645017,-460.0,0.00019452,2]
[368202309,1751058645026,-460.0,0.00019452,2]
[368202311,1751058645036,-460.0,0.00019452,2]
[368202313,1751058645045,-824.52,0.00019452,2]
[368202315,1751058645055,-725.53,0.00019452,2]
[368202317,1751058645064,-500.0,0.0001956,2]
[368202319,1751058645073,-500.0,0.00019569,2]
[368202321,1751058645082,-500.0,0.00019569,2]
[368202323,1751058645091,-500.0,0.00019569,2]
[368202325,1751058645100,-500.0,0.00019569,2]
[368202327,1751058645110,-500.0,0.00019569,2]
[368202329,1751058645119,-500.0,0.0001968,2]
[368202331,1751058645128,-500.0,0.0001968,2]
[368202333,1751058645138,-500.0,0.0001969,2]
[368202335,1751058645147,-980.65187058,0.00019721,2]
[368202337,1751058645156,-500.0,0.00019721,2]
[368202339,1751058645168,-563.40234166,0.00019721,2]
[368202341,1751058645177,-828.82839782,0.00019721,2]
[368202343,1751058645186,-502.89649884,0.00019721,2]
[368202345,1751058645196,-500.0,0.00019721,2]
[368202347,1751058645205,-1000.0,0.00019721,2]
[368202348,1751058645214,-500.0,0.00019721,2]
[368202350,1751058645224,-409.94680605,0.00019726,2]
[368202352,1751058645233,-460.0,0.00019726,2]
[368202354,1751058645242,-460.0,0.00019726,2]
[368202356,1751058645251,-460.0,0.00019726,2]
[368202358,1751058645261,-460.0,0.00019726,2]
[368202360,1751058645270,-460.0,0.00019726,2]
[368202362,1751058645279,-460.0,0.00019726,2]
[368202364,1751058645289,-460.0,0.00019726,2]
[368202367,1751058645298,-460.0,0.00019726,2]
[368202369,1751058645307,-460.0,0.00019726,2]
[368202371,1751058645316,-460.0,0.00019726,2]
[368202373,1751058645326,-460.0,0.00019726,2]
[368202374,1751058645335,-460.0,0.00019726,2]
[368202376,1751058645344,-460.0,0.00019726,2]
[368202378,1751058645353,-460.0,0.00019726,2]
[368202380,1751058645362,-460.0,0.00019726,2]
[368202382,1751058645371,-461.91124575,0.00019726,2]
[368202385,1751058645380,-460.0,0.00019726,2]
[368202386,1751058645389,-460.0,0.00019726,2]
[368202389,1751058645398,-460.0,0.00019726,2]
[368202390,1751058645407,-460.0,0.00019726,2]
[368202393,1751058645417,-460.0,0.00019726,2]
[368202395,1751058645426,-460.0,0.00019726,2]
[368202397,1751058645435,-460.0,0.00019726,2]
[368202399,1751058645445,-735.53,0.00019726,2]
[368202401,1751058645455,-460.0,0.00019726,2]
[368202402,1751058645463,-460.0,0.00019726,2]
[368202404,1751058645472,-460.0,0.00019726,2]
[368202406,1751058645482,-460.0,0.00019726,2]
[368202409,1751058645491,-460.0,0.00019726,2]
[368202410,1751058645500,-460.0,0.00019726,2]
[368202412,1751058645509,-460.0,0.00019726,2]
[368202414,1751058645518,-460.0,0.00019726,2]
[368202416,1751058645528,-460.0,0.00019726,2]
[368202419,1751058645537,-460.0,0.00019726,2]
[368202421,1751058645546,-460.0,0.00019726,2]
[368202423,1751058645555,-460.0,0.00019726,2]
[368202425,1751058645565,-460.0,0.00019726,2]
[368202427,1751058645574,-460.0,0.00019726,2]
[368202429,1751058645584,-460.0,0.00019726,2]
[368202430,1751058645593,-460.0,0.00019726,2]
[368202433,1751058645603,-460.0,0.00019726,2]
[368202434,1751058645612,-460.0,0.00019726,2]
[368202436,1751058645621,-460.0,0.00019726,2]
[368202439,1751058645631,-460.0,0.00019726,2]
[368202440,1751058645641,-460.0,0.00019726,2]
[368202443,1751058645651,-325.7,0.00019726,2]
[368202445,1751058645660,-460.0,0.00019726,2]
[368202447,1751058645669,-360.87957347,0.00019726,2]
[368202449,1751058645678,-460.0,0.00019726,2]
[368202451,1751058645687,-460.0,0.00019726,2]
[368202454,1751058645708,-690.75,0.00019726,2]
[368202456,1751058645721,-460.0,0.00019726,2]
[368202458,1751058645731,-438.63062073,0.00019726,2]
[368202460,1751058645741,-460.0,0.00019726,2]
[368202463,1751058645751,-460.0,0.00019726,2]
[368202465,1751058645762,-1690.51,0.00019726,2]
[368202467,1751058645771,-486.38,0.00019726,2]
[368202469,1751058645782,-526.63,0.00019726,2]
[368202471,1751058645792,-460.0,0.00019726,2]
[368202473,1751058645805,-460.0,0.00019726,2]
[368202475,1751058645815,-588.41,0.00019726,2]
[368202477,1751058645825,-2847.8,0.00019726,2]
[368202479,1751058645836,-936.61,0.00019726,2]
[368202481,1751058645847,-1084.84,0.00019726,2]
[368202483,1751058645859,-460.0,0.00019726,2]
[368202485,1751058645869,-460.0,0.00019726,2]
[368202487,1751058645879,-575.58,0.00019726,2]
[368202489,1751058645888,-460.0,0.00019726,2]
[368202491,1751058645898,-460.0,0.00019726,2]
[368202493,1751058645908,-460.0,0.00019726,2]
[368202495,1751058645918,-460.0,0.00019726,2]
[368202497,1751058645928,-460.0,0.00019726,2]
[368202500,1751058645938,-683.13,0.00019726,2]
[368202502,1751058645947,-460.0,0.00019726,2]
[368202504,1751058645956,-3075.15,0.00019726,2]
[368202506,1751058645967,-2589.21,0.00019726,2]
[368202508,1751058645977,-460.0,0.00019726,2]
[368202510,1751058645987,-460.0,0.00019726,2]
[368202512,1751058645996,-460.0,0.00019726,2]
[368202514,1751058646006,-527.69,0.00019726,2]
[368202516,1751058646015,-1732.22,0.00019726,2]
[368202518,1751058646025,-3191.1,0.00019726,2]
[368202520,1751058646035,-932.16,0.00019726,2]
[368202522,1751058646044,-552.30136842,0.00019726,2]
[368202524,1751058646054,-460.0,0.00019726,2]
[368202526,1751058646064,-460.0,0.00019726,2]
[368202528,1751058646074,-609.98,0.00019726,2]
[368202530,1751058646084,-460.0,0.00019726,2]
[368202532,1751058646094,-554.02,0.00019726,2]
[368202534,1751058646103,-519.61,0.00019726,2]
[368202536,1751058646113,-460.0,0.00019726,2]
[368202538,1751058646123,-460.0,0.00019726,2]
[368202540,1751058646133,-460.0,0.00019726,2]
[368202543,1751058646143,-2055.88,0.00019726,2]
[368202545,1751058646153,-460.0,0.00019726,2]
[368202547,1751058646163,-460.0,0.00019726,2]
[368202549,1751058646173,-460.0,0.00019726,2]
[368202551,1751058646183,-1723.05,0.00019726,2]
[368202553,1751058646192,-460.0,0.00019726,2]
[368202555,1751058646202,-460.0,0.00019726,2]
[368202557,1751058646211,-460.0,0.00019726,2]
[368202559,1751058646221,-460.0,0.00019726,2]
[368202561,1751058646231,-460.0,0.00019726,2]
[368202563,1751058646240,-845.68,0.00019726,2]
[368202565,1751058646250,-1005.17,0.00019726,2]
[368202567,1751058646259,-460.0,0.00019726,2]
[368202569,1751058646269,-460.0,0.00019726,2]
[368202571,1751058646279,-704.96,0.00019726,2]
[368202573,1751058646288,-1523.4,0.00019726,2]
[368202575,1751058646298,-1913.31,0.00019726,2]
[368202577,1751058646307,-491.32941475,0.00019726,2]
[368202579,1751058646317,-571.72,0.00019726,2]
[368202582,1751058646330,-460.0,0.00019726,2]
[368202584,1751058646340,-460.0,0.00019726,2]
[368202586,1751058646349,-666.0,0.00019726,2]
[368202588,1751058646360,-460.0,0.00019726,2]
[368202590,1751058646369,-500.0,0.00019726,2]
[368202592,1751058646378,-460.0,0.00019726,2]
[368202594,1751058646388,-460.0,0.00019726,2]
[368202596,1751058646397,-460.0,0.00019726,2]
[368202598,1751058646407,-632.0,0.00019726,2]
[368202600,1751058646417,-460.0,0.00019726,2]
[368202602,1751058646427,-4518.79,0.00019726,2]
[368202604,1751058646436,-542.06,0.00019726,2]
[368202606,1751058646446,-460.0,0.00019726,2]
[368202608,1751058646458,-260.55050391,0.00019726,2]
[368202610,1751058646468,-460.0,0.00019726,2]
[368202612,1751058646477,-460.0,0.00019726,2]
[368202614,1751058646486,-2484.49,0.00019726,2]
[368202616,1751058646496,-460.0,0.00019726,2]
[368202618,1751058646505,-460.0,0.00019726,2]
[368202620,1751058646515,-460.0,0.00019726,2]
[368202622,1751058646525,-460.0,0.00019726,2]
[368202624,1751058646535,-460.0,0.00019726,2]
[368202626,1751058646545,-460.0,0.00019726,2]
[368202628,1751058646554,-460.0,0.00019726,2]
[368202631,1751058646564,-710.88,0.00019726,2]
[368202633,1751058646574,-757.78,0.00019726,2]
[368202635,1751058646583,-460.0,0.00019726,2]
[368202637,1751058646593,-1320.85,0.00019726,2]
[368202639,1751058646602,-600.79,0.00019726,2]
[368202641,1751058646612,-460.0,0.00019726,2]
[368202643,1751058646622,-460.0,0.00019726,2]
[368202645,1751058646631,-4393.54,0.00019726,2]
[368202647,1751058646641,-460.0,0.00019726,2]
[368202649,1751058646651,-460.0,0.00019726,2]
[368202651,1751058646661,-460.0,0.00019726,2]
[368202653,1751058646670,-4177.64,0.00019726,2]
[368202655,1751058646680,-460.0,0.00019726,2]
[368202657,1751058646689,-460.0,0.00019726,2]
[368202659,1751058646699,-696.88,0.00019726,2]
[368202661,1751058646708,-460.0,0.00019726,2]
[368202663,1751058646718,-460.0,0.00019726,2]
[368202665,1751058646727,-460.0,0.00019726,2]
[368202667,1751058646737,-1355.6,0.00019726,2]
[368202669,1751058646747,-721.51,0.00019726,2]
[368202671,1751058646756,-1409.87,0.00019726,2]
[368202673,1751058646767,-460.0,0.00019726,2]
[368202676,1751058646779,-619.56,0.00019726,2]
[368202678,1751058646789,-5361.03,0.00019726,2]
[368202680,1751058646802,-460.0,0.00019726,2]
[368202682,1751058646813,-460.0,0.00019726,2]
[368202684,1751058646822,-460.0,0.00019726,2]
[368202686,1751058646832,-824.52,0.00019726,2]
[368202688,1751058646843,-164.8717889,0.00019798,2]
[368202690,1751058646853,-420.0,0.00019826,2]
[368202692,1751058646863,-2367.1561815,0.000199,2]
[368202694,1751058646875,-5895.58817352,0.000199,2]
[368202696,1751058646884,-460.0,0.0002,2]
[368202698,1751058646894,-460.0,0.0002,2]
[368202700,1751058646904,-460.0,0.0002,2]
[368202702,1751058646914,-460.0,0.0002,2]
[368202704,1751058646923,-165.48,0.0002,2]
[368202706,1751058646933,-386.52835291,0.0002,2]
[368202708,1751058646942,-460.0,0.0002,2]
[368202710,1751058646953,-460.0,0.0002,2]
[368202712,1751058646963,-460.0,0.0002,2]
[368202714,1751058646972,-460.0,0.0002,2]
[368202716,1751058646982,-460.0,0.0002,2]
[368202718,1751058646991,-460.0,0.0002,2]
[368202720,1751058647001,-460.0,0.0002,2]
[368202722,1751058647011,-735.53,0.0002,2]
[368202725,1751058647022,-453.38,0.0002,2]
[368202727,1751058647031,-460.0,0.0002,2]
[368202729,1751058647041,-460.0,0.0002,2]
[368202731,1751058647050,-460.0,0.0002,2]
[368202733,1751058647060,-460.0,0.0002,2]
[368202735,1751058647070,-460.0,0.0002,2]
[368202737,1751058647080,-585.15,0.0002,2]
[368202739,1751058647089,-460.0,0.0002,2]
[368202741,1751058647098,-460.0,0.0002,2]
[368202743,1751058647108,-460.0,0.0002,2]
[368202745,1751058647118,-460.0,0.0002,2]
[368202747,1751058647128,-399.96,0.0002,2]
[368202749,1751058647138,-460.0,0.0002,2]
[368202751,1751058647148,-460.0,0.0002,2]
[368202753,1751058647157,-460.0,0.0002,2]
[368202755,1751058647168,-460.0,0.0002,2]
[368202757,1751058647178,-300.0,0.0002,2]
[368202759,1751058647188,-532.28,0.0002,2]
[368202761,1751058647198,-460.0,0.0002,2]
[368202763,1751058647207,-690.75,0.0002,2]
[368202765,1751058647217,-460.0,0.0002,2]
[368202767,1751058647227,-460.0,0.0002,2]
[368202769,1751058647236,-1690.51,0.0002,2]
[368202771,1751058647246,-486.38,0.0002,2]
[368202773,1751058647256,-460.0,0.0002,2]
[368202775,1751058647265,-526.63,0.0002,2]
[368202777,1751058647275,-460.0,0.0002,2]
[368202779,1751058647284,-588.41,0.0002,2]
[368202781,1751058647294,-2847.8,0.0002,2]
[368202783,1751058647303,-936.61,0.0002,2]
[368202785,1751058647313,-1084.84,0.0002,2]
[368202787,1751058647323,-460.0,0.0002,2]
[368202789,1751058647336,-575.58,0.0002,2]
[368202790,1751058647347,-460.0,0.0002,2]
[368202791,1751058647357,-460.0,0.0002,2]
[368202792,1751058647367,-460.0,0.0002,2]
[368202793,1751058647377,-460.0,0.0002,2]
[368202794,1751058647386,-460.0,0.0002,2]
[368202795,1751058647396,-683.13,0.0002,2]
[368202796,1751058647406,-158.2548994,0.0002,2]
[368202797,1751058647416,-3075.15,0.0002,2]
[368202798,1751058647426,-2589.21,0.0002,2]
[368202799,1751058647436,-460.0,0.0002,2]
[368202800,1751058647446,-460.0,0.0002,2]
[368202802,1751058647455,-527.69,0.0002,2]
[368202804,1751058647464,-1732.22,0.0002,2]
[368202806,1751058647474,-3191.1,0.0002,2]
[368202808,1751058647483,-932.16,0.0002,2]
[368202810,1751058647493,-460.0,0.0002,2]
[368202812,1751058647503,-609.98,0.0002,2]
[368202814,1751058647512,-460.0,0.0002,2]
[368202816,1751058647522,-519.61,0.0002,2]
[368202818,1751058647531,-554.02,0.0002,2]
[368202820,1751058647541,-460.0,0.0002,2]
[368202822,1751058647550,-460.0,0.0002,2]
[368202824,1751058647560,-460.0,0.0002,2]
[368202826,1751058647570,-2055.88,0.0002,2]
[368202828,1751058647579,-500.0,0.0002,2]
[368202830,1751058647589,-460.0,0.0002,2]
[368202832,1751058647598,-1723.05,0.0002,2]
[368202834,1751058647607,-460.0,0.0002,2]
[368202836,1751058647617,-460.0,0.0002,2]
[368202838,1751058647627,-460.0,0.0002,2]
[368202840,1751058647636,-460.0,0.0002,2]
[368202864,1751058647859,-845.68,0.0002,2]
[368202867,1751058647868,-1005.17,0.0002,2]
[368202869,1751058647878,-460.0,0.0002,2]
[368202871,1751058647887,-704.96,0.0002,2]
[368202873,1751058647897,-1523.4,0.0002,2]
[368202875,1751058647907,-1913.31,0.0002,2]
[368202877,1751058647916,-571.72,0.0002,2]
[368202879,1751058647925,-460.0,0.0002,2]
[368202881,1751058647934,-460.0,0.0002,2]
[368202883,1751058647943,-666.0,0.0002,2]
[368202884,1751058647952,-460.0,0.0002,2]
[368202886,1751058647961,-460.0,0.0002,2]
[368202888,1751058647971,-460.0,0.0002,2]
[368202890,1751058647980,-460.0,0.0002,2]
[368202892,1751058647989,-632.0,0.0002,2]
[368202894,1751058647998,-460.0,0.0002,2]
[368202896,1751058648007,-4518.79,0.0002,2]
[368202898,1751058648017,-542.06,0.0002,2]
[368202900,1751058648026,-460.0,0.0002,2]
[368202902,1751058648035,-460.0,0.0002,2]
[368202904,1751058648044,-2484.49,0.0002,2]
[368202906,1751058648054,-460.0,0.0002,2]
[368202908,1751058648063,-460.0,0.0002,2]
[368202910,1751058648073,-460.0,0.0002,2]
[368202912,1751058648082,-460.0,0.0002,2]
[368202914,1751058648091,-460.0,0.0002,2]
[368202916,1751058648100,-460.0,0.0002,2]
[368202918,1751058648109,-710.88,0.0002,2]
[368202921,1751058648119,-757.78,0.0002,2]
[368202922,1751058648129,-460.0,0.0002,2]
[368202924,1751058648138,-1320.85,0.0002,2]
[368202927,1751058648148,-600.79,0.0002,2]
[368202929,1751058648157,-460.0,0.0002,2]
[368202931,1751058648167,-460.0,0.0002,2]
[368202933,1751058648177,-4393.54,0.0002,2]
[368202935,1751058648187,-460.0,0.0002,2]
[368202937,1751058648196,-460.0,0.0002,2]
[368202939,1751058648206,-4177.64,0.0002,2]
[368202941,1751058648215,-460.0,0.0002,2]
[368202943,1751058648225,-460.0,0.0002,2]
[368202945,1751058648234,-696.88,0.0002,2]
[368202947,1751058648243,-460.0,0.0002,2]
[368202949,1751058648253,-460.0,0.0002,2]
[368202951,1751058648262,-460.0,0.0002,2]
[368202953,1751058648272,-1355.6,0.0002,2]
[368202955,1751058648282,-721.51,0.0002,2]
[368202957,1751058648291,-1409.87,0.0002,2]
[368202959,1751058648301,-460.0,0.0002,2]
[368202961,1751058648310,-619.56,0.0002,2]
[368202963,1751058648320,-5361.03,0.0002,2]
[368202965,1751058648329,-460.0,0.0002,2]
[368202967,1751058648338,-460.0,0.0002,2]
[368202969,1751058648347,-460.0,0.0002,2]
[368202971,1751058648358,-824.52,0.0002,2]
[368202973,1751058648367,-160.0,0.00020039,2]
[368202975,1751058648377,-847.04181546,0.00020039,2]
[368202977,1751058648387,-160.0,0.00020039,2]
[368202979,1751058648397,-160.0,0.00020039,2]
[368202981,1751058648406,-230.26210603,0.00020039,2]
[368202983,1751058648415,-836.98798914,0.00020039,2]
[368202985,1751058648425,-12562.41216491,0.00020039,2]
[368202987,1751058648435,-160.0,0.00020039,2]
[368202989,1751058648444,-213.75309343,0.00020039,2]
[368202991,1751058648455,-160.0,0.00020039,2]
[368202993,1751058648464,-160.0,0.00020039,2]
[368202995,1751058648474,-214.91804724,0.00020039,2]
[368202997,1751058648484,-160.0,0.0002004,2]
[368203000,1751058648497,-160.0,0.0002004,2]
[368203002,1751058648507,-160.0,0.0002004,2]
[368203004,1751058648517,-168.0,0.00020055,2]
[368203006,1751058648526,-500.0,0.00020117,2]
[368203008,1751058648536,-500.0,0.00020117,2]
[368203010,1751058648545,-500.0,0.00020117,2]
[368203012,1751058648555,-500.0,0.00020117,2]
[368203014,1751058648564,-366.1147399,0.00020137,2]
[368203016,1751058648574,-5895.58817333,0.00020141,2]
[368203018,1751058648585,-481.154264,0.00020187,2]
[368203020,1751058648595,-5000.0,0.00020195,2]
[368203022,1751058648604,-500.0,0.00020195,2]
[368203024,1751058648615,-500.0,0.00020195,2]
[368203026,1751058648624,-500.0,0.00020195,2]
[368203028,1751058648635,-500.0,0.00020195,2]
[368203030,1751058648644,-500.0,0.00020195,2]
[368203032,1751058648654,-207.4,0.00020195,2]
[368203035,1751058648664,-500.0,0.00020195,2]
[368203037,1751058648674,-500.0,0.00020195,2]
[368203039,1751058648684,-381.33984163,0.00020195,2]
[368203041,1751058648693,-500.0,0.00020228,2]
[368203043,1751058648703,-288.09348078,0.00020228,2]
[368203045,1751058648713,-1500.0,0.00020268,2]
[368203047,1751058648723,-500.0,0.00020272,2]
[368203049,1751058648733,-500.0,0.00020272,2]
[368203051,1751058648742,-500.0,0.00020272,2]
[368203053,1751058648752,-511.13860579,0.00020272,2]
[368203055,1751058648762,-500.0,0.00020272,2]
[368203057,1751058648771,-500.0,0.00020272,2]
[368203059,1751058648782,-500.0,0.00020272,2]
[368203061,1751058648792,-500.0,0.00020272,2]
[368203063,1751058648805,-500.0,0.00020272,2]
[368203065,1751058648815,-500.0,0.00020272,2]
[368203067,1751058648825,-291.32670292,0.00020272,2]
[368203069,1751058648834,-500.0,0.00020272,2]
[368203071,1751058648845,-500.0,0.00020272,2]
[368203073,1751058648854,-500.0,0.00020272,2]
[368203075,1751058648864,-500.0,0.00020272,2]
[368203077,1751058648873,-500.0,0.00020272,2]
[368203079,1751058648883,-500.0,0.00020272,2]
[368203081,1751058648894,-312.8247973,0.00020272,2]
[368203083,1751058648904,-500.0,0.00020272,2]
[368203085,1751058648914,-500.0,0.00020272,2]
[368203087,1751058648924,-233.66999472,0.00020272,2]
[368203089,1751058648933,-500.0,0.00020272,2]
[368203091,1751058648943,-154.27289891,0.00020272,2]
[368203093,1751058648953,-500.0,0.00020272,2]
[368203095,1751058648962,-500.0,0.00020272,2]
[368203097,1751058648972,-500.0,0.00020272,2]
[368203099,1751058648982,-321.21744611,0.00020272,2]
[368203102,1751058648991,-500.0,0.00020272,2]
[368203104,1751058649001,-500.0,0.00020272,2]
[368203106,1751058649011,-500.0,0.00020272,2]
[368203108,1751058649020,-500.0,0.00020272,2]
[368203110,1751058649029,-500.0,0.00020272,2]
[368203112,1751058649039,-500.0,0.00020272,2]
[368203114,1751058649048,-500.0,0.00020272,2]
[368203116,1751058649058,-500.0,0.00020272,2]
[368203117,1751058649067,-625.90451237,0.00020272,2]
[368203119,1751058649076,-464.93653188,0.00020272,2]
[368203121,1751058649085,-550.0,0.00020272,2]
[368203123,1751058649095,-500.0,0.00020272,2]
[368203125,1751058649104,-500.0,0.00020272,2]
[368203127,1751058649113,-500.0,0.00020272,2]
[368203129,1751058649123,-400.0,0.00020272,2]
[368203131,1751058649133,-500.0,0.00020272,2]
[368203133,1751058649142,-500.0,0.00020272,2]
[368203135,1751058649151,-500.0,0.00020272,2]
[368203137,1751058649161,-500.0,0.00020272,2]
[368203139,1751058649170,-500.0,0.00020272,2]
[368203141,1751058649180,-500.0,0.00020272,2]
[368203143,1751058649189,-489.94962032,0.00020272,2]
[368203145,1751058649200,-284.62101766,0.00020272,2]
[368203147,1751058649209,-500.0,0.00020272,2]
[368203149,1751058649219,-500.0,0.00020272,2]
[368203151,1751058649228,-500.0,0.00020272,2]
[368203153,1751058649238,-500.0,0.00020272,2]
[368203155,1751058649247,-500.0,0.00020272,2]
[368203157,1751058649257,-402.02170801,0.00020272,2]
[368203159,1751058649266,-500.0,0.00020272,2]
[368203161,1751058649276,-500.0,0.00020272,2]
[368203163,1751058649286,-500.0,0.00020272,2]
[368203165,1751058649296,-500.0,0.00020272,2]
[368203167,1751058649305,-500.0,0.00020272,2]
[368203169,1751058649315,-500.0,0.00020272,2]
[368203171,1751058649325,-500.0,0.00020272,2]
[368203173,1751058649335,-500.0,0.00020272,2]
[368203175,1751058649344,-500.0,0.00020272,2]
[368203177,1751058649354,-460.0,0.00020273,2]
[368203179,1751058649363,-460.0,0.00020273,2]
[368203181,1751058649372,-460.0,0.00020273,2]
[368203183,1751058649381,-460.0,0.00020273,2]
[368203185,1751058649390,-460.0,0.00020273,2]
[368203187,1751058649400,-460.0,0.00020273,2]
[368203189,1751058649409,-460.0,0.00020273,2]
[368203192,1751058649419,-460.0,0.00020273,2]
[368203194,1751058649429,-735.53,0.00020273,2]
[368203196,1751058649439,-460.0,0.00020273,2]
[368203198,1751058649448,-460.0,0.00020273,2]
[368203200,1751058649458,-460.0,0.00020273,2]
[368203202,1751058649469,-460.0,0.00020273,2]
[368203204,1751058649479,-460.0,0.00020273,2]
[368203206,1751058649488,-460.0,0.00020273,2]
[368203208,1751058649499,-460.0,0.00020273,2]
[368203210,1751058649508,-460.0,0.00020273,2]
[368203212,1751058649526,-460.0,0.00020273,2]
[368203213,1751058649536,-488.4538692,0.00020273,2]
[368203216,1751058649546,-460.0,0.00020273,2]
[368203218,1751058649557,-161.39585277,0.00020273,2]
[368203220,1751058649566,-478.46342209,0.00020273,2]
[368203222,1751058649576,-690.75,0.00020273,2]
[368203224,1751058649585,-460.0,0.00020273,2]
[368203226,1751058649595,-1690.51,0.00020273,2]
[368203228,1751058649604,-486.38,0.00020273,2]
[368203230,1751058649613,-460.0,0.00020273,2]
[368203232,1751058649623,-526.63,0.00020273,2]
[368203234,1751058649632,-460.0,0.00020273,2]
[368203236,1751058649642,-588.41,0.00020273,2]
[368203238,1751058649651,-2847.8,0.00020273,2]
[368203240,1751058649661,-936.61,0.00020273,2]
[368203242,1751058649670,-1084.84,0.00020273,2]
[368203244,1751058649679,-460.0,0.00020273,2]
[368203246,1751058649689,-575.58,0.00020273,2]